bitfinex/quotes_BTCUSD_20241205
["timestamp","ask_amount","ask_price","bid_price","bid_amount"]
[1733426971177,0.28394521,100660.0,100650.0,0.06877141]
[1733426973848,0.03600416,100670.0,100650.0,0.16812241]
[1733426974051,0.15,100660.0,100650.0,0.11844541]
[1733426974252,0.13568021,100670.0,100660.0,0.049672]
[1733426974455,0.28568021,100670.0,100660.0,0.049672]
[1733426974651,0.28009518,100670.0,100660.0,0.049672]
[1733426974862,0.26766057,100670.0,100660.0,0.049672]
[1733426975470,0.25141105,100670.0,100660.0,0.049672]
[1733426976684,0.33251105,100670.0,100660.0,0.049672]
[1733426976893,0.15,100660.0,100650.0,0.11844241]
[1733426977114,0.24967605,100660.0,100650.0,0.11844241]
[1733426978638,0.25526108,100660.0,100650.0,0.11844241]
[1733426978898,0.24967605,100660.0,100650.0,0.11844241]
[1733426979326,0.81641516,100660.0,100650.0,0.00108457]
[1733426979541,0.61641516,100660.0,100650.0,0.00108457]
[1733426980036,1.15101516,100660.0,100650.0,0.00108457]
[1733426980475,1.1580082,100660.0,100650.0,0.00108457]
[1733426982675,0.478508,100650.0,100640.0,0.000865]
[1733426982883,0.471628,100640.0,100630.0,0.0008654]
[1733426983095,0.57130405,100640.0,100630.0,0.00104188]
[1733426983321,0.57130405,100640.0,100620.0,0.0017342]
[1733426983322,0.471647,100630.0,100620.0,0.0017342]
[1733426983543,0.57132305,100630.0,100620.0,0.0017342]
[1733426983748,0.479867,100620.0,100610.0,0.0008671]
[1733426983974,0.67746227,100620.0,100610.0,0.0008671]
[1733426984183,0.684454,100620.0,100610.0,0.0008671]
[1733426985725,0.684454,100620.0,100600.0,0.0017358]
[1733426985726,0.479887,100610.0,100600.0,0.0017358]
[1733426985958,0.57956305,100610.0,100600.0,0.0017358]
[1733426986184,0.58655445,100610.0,100600.0,0.0017358]
[1733426986365,0.68447367,100610.0,100600.0,0.0017358]
[1733426987011,0.00558503,100550.0,100540.0,0.0605585]
[1733426987257,0.24967605,100550.0,100540.0,0.0108305]
[1733426987378,0.25666548,100550.0,100540.0,0.0108305]
[1733426987589,0.25666548,100550.0,100540.0,0.0605615]
[1733426988262,0.25666548,100550.0,100540.0,0.06114991]
[1733426988495,0.68952763,100550.0,100540.0,0.01141891]
[1733426988735,0.78952763,100550.0,100540.0,0.01141891]
[1733426990807,0.23666548,100550.0,100540.0,0.06114991]
[1733426993981,0.08666548,100550.0,100540.0,0.06114991]
[1733426996007,0.09225051,100550.0,100540.0,0.06114991]
[1733426996253,0.08666548,100550.0,100540.0,0.06114991]
[1733426999047,0.26534961,100550.0,100540.0,0.06114991]
[1733426999333,0.26320044,100550.0,100540.0,0.06114991]
[1733427000270,0.23666548,100550.0,100540.0,0.01141891]
[1733427000494,0.43557148,100550.0,100540.0,0.01141891]
[1733427000944,0.23666548,100550.0,100540.0,0.01141891]
[1733427001162,0.23666548,100550.0,100540.0,0.06114991]
[1733427001657,0.75717148,100550.0,100540.0,0.01141891]
[1733427001904,0.5096847,100550.0,100540.0,0.01141891]
[1733427002139,0.23666548,100550.0,100540.0,0.06114991]
[1733427003060,0.53557148,100550.0,100540.0,0.01141891]
[1733427003499,0.33666548,100550.0,100540.0,0.06114991]
[1733427004996,0.23666548,100550.0,100540.0,0.06114991]
[1733427005447,0.38784203,100550.0,100540.0,0.01141891]
[1733427005684,0.66674803,100550.0,100540.0,0.01141891]
[1733427006132,0.46784203,100550.0,100540.0,0.01141891]
[1733427006587,0.31666548,100550.0,100540.0,0.06114991]
[1733427006803,0.21666548,100550.0,100540.0,0.06114991]
[1733427007953,0.10093464,100550.0,100540.0,0.06114991]
[1733427008174,0.10093464,100550.0,100540.0,0.13884991]
[1733427008441,0.07225051,100550.0,100540.0,0.13884991]
[1733427008899,0.10093464,100550.0,100540.0,0.13884991]
[1733427009125,0.00698943,100550.0,100540.0,0.13884991]
[1733427009341,0.04125859,100550.0,100540.0,0.13884991]
[1733427010197,0.00698943,100550.0,100540.0,0.13884991]
[1733427010677,4.3e-07,100550.0,100540.0,0.18734444]
[1733427010884,4.3e-07,100550.0,100540.0,0.18634991]
[1733427011091,0.03426916,100560.0,100540.0,0.18634991]
[1733427011092,0.03426916,100560.0,100550.0,0.049726]
[1733427011994,0.00558503,100560.0,100550.0,0.049726]
[1733427012188,0.27836018,100560.0,100550.0,0.049726]
[1733427012406,0.15,100550.0,100540.0,0.11087491]
[1733427012640,0.24967605,100550.0,100540.0,0.11087491]
[1733427012911,0.24967605,100550.0,100540.0,0.06114691]
[1733427013130,0.24967605,100550.0,100510.0,0.049746]
[1733427013131,0.03426916,100530.0,100510.0,0.049746]
[1733427013337,0.28394521,100530.0,100520.0,0.04985779]
[1733427013550,0.25526108,100530.0,100520.0,0.04985779]
[1733427016781,0.03426916,100530.0,100520.0,0.04985779]
[1733427020201,0.00558503,100530.0,100520.0,0.04985779]
[1733427020644,0.00558503,100530.0,100520.0,0.12695779]
[1733427020843,0.00558503,100530.0,100520.0,0.14322838]
[1733427021674,0.00558503,100540.0,100530.0,0.049736]
[1733427021905,0.03525616,100550.0,100540.0,0.049731]
[1733427022365,0.03600636,100560.0,100550.0,0.049726]
[1733427022568,0.13568241,100560.0,100550.0,0.049726]
[1733427023460,0.03600636,100560.0,100550.0,0.049726]
[1733427024121,0.03349994,100560.0,100550.0,0.049726]
[1733427024353,0.00558503,100560.0,100550.0,0.049726]
[1733427024774,0.18448474,100570.0,100560.0,0.049721]
[1733427025036,0.25066085,100570.0,100550.0,0.149173]
[1733427025249,0.67096305,100560.0,100540.0,0.049731]
[1733427025457,0.96985805,100560.0,100540.0,0.049729]
[1733427025672,0.57207605,100560.0,100540.0,0.099458]
[1733427025914,0.57266404,100560.0,100550.0,0.049726]
[1733427026331,0.58386542,100560.0,100550.0,0.049726]
[1733427026543,0.37266404,100560.0,100550.0,0.049726]
[1733427030422,0.25026404,100560.0,100550.0,0.049726]
[1733427030655,0.13376398,100560.0,100550.0,0.049726]
[1733427030868,0.12817895,100560.0,100550.0,0.049726]
[1733427031274,0.10584907,100560.0,100550.0,0.049726]
[1733427031725,0.00617302,100560.0,100550.0,0.049726]
[1733427032219,0.03408793,100560.0,100550.0,0.049726]
[1733427032443,0.0285029,100560.0,100550.0,0.049726]
[1733427032663,0.03408793,100560.0,100550.0,0.049726]
[1733427033773,0.00617302,100560.0,100550.0,0.049726]
[1733427033984,0.00058799,100560.0,100550.0,0.049726]
[1733427036215,0.00058799,100560.0,100550.0,0.051463]
[1733427036652,0.00145649,100560.0,100550.0,0.051463]
[1733427037978,0.00145649,100560.0,100550.0,0.06732174]
[1733427040683,0.00145649,100560.0,100550.0,0.06831614]
[1733427040901,0.00145649,100560.0,100550.0,0.06732174]
[1733427044701,0.00145649,100560.0,100550.0,0.06831613]
[1733427046088,0.00145649,100560.0,100550.0,0.06732174]
[1733427046309,0.28463248,100560.0,100550.0,0.06732174]
[1733427046764,0.28463248,100560.0,100550.0,0.051463]
[1733427046765,0.33436579,100560.0,100550.0,0.051463]
[1733427046991,0.41964945,100560.0,100550.0,0.001737]
[1733427047223,0.29161614,100560.0,100550.0,0.051463]
[1733427047453,0.00844015,100560.0,100550.0,0.051463]
[1733427048876,1.9e-07,100560.0,100550.0,0.22773342]
[1733427049093,1.9e-07,100560.0,100550.0,0.22673905]
[1733427049547,0.00336939,100560.0,100550.0,0.22673905]
[1733427049986,0.17890471,100580.0,100550.0,0.22673905]
[1733427049987,8e-07,100580.0,100560.0,0.049717]
[1733427050220,8e-07,100580.0,100570.0,0.39807085]
[1733427050461,8e-07,100580.0,100570.0,0.39707672]
[1733427050761,0.02791491,100610.0,100600.0,0.059642]
[1733427051001,0.15345231,100620.0,100600.0,0.119284]
[1733427051245,0.22620465,100620.0,100600.0,0.178926]
[1733427051514,0.09967605,100610.0,100600.0,0.119284]
[1733427053514,0.09967605,100610.0,100590.0,0.059645]
[1733427053515,0.24967605,100610.0,100590.0,0.059648]
[1733427053753,0.24967605,100610.0,100590.0,0.11940779]
[1733427053976,0.28719739,100610.0,100600.0,0.059642]
[1733427054453,0.36749739,100610.0,100600.0,0.059642]
[1733427056270,0.36749739,100610.0,100590.0,0.17904779]
[1733427056485,0.36749739,100610.0,100590.0,0.11940279]
[1733427056698,0.1991,100600.0,100590.0,0.05975979]
[1733427056915,0.29877605,100600.0,100590.0,0.05975979]
[1733427057133,0.34043579,100600.0,100590.0,0.05975979]
[1733427057997,0.34043579,100600.0,100590.0,0.00011679]
[1733427058222,0.71964279,100600.0,100590.0,0.00011679]
[1733427058433,0.52083579,100600.0,100590.0,0.05976479]
[1733427058922,0.52083579,100600.0,100590.0,0.00011679]
[1733427059166,0.52083579,100600.0,100590.0,0.05976479]
[1733427059640,0.52083579,100600.0,100590.0,0.00011679]
[1733427059859,0.37917605,100600.0,100590.0,0.05976479]
[1733427060280,0.38004315,100600.0,100590.0,0.05976479]
[1733427060719,0.38004315,100600.0,100590.0,0.00011679]
[1733427060903,0.38004315,100600.0,100590.0,0.04982279]
[1733427061141,0.47796237,100600.0,100590.0,0.04982279]
[1733427061560,0.57796237,100600.0,100590.0,0.04982279]
[1733427063097,0.0008671,100600.0,100590.0,0.04982279]
[1733427063332,0.0008671,100600.0,100590.0,0.05081696]
[1733427063523,0.0008671,100600.0,100590.0,0.12801696]
[1733427064195,0.0008671,100600.0,100590.0,0.12702279]
[1733427064649,0.0008671,100600.0,100590.0,0.04982279]
[1733427066670,0.0008671,100600.0,100590.0,0.06507635]
[1733427067582,0.10054315,100600.0,100590.0,0.06507635]
[1733427067807,0.25054315,100600.0,100590.0,0.06507635]
[1733427068022,0.1508671,100600.0,100590.0,0.06507635]
[1733427068963,0.0008671,100600.0,100590.0,0.06507635]
[1733427069428,0.0008671,100600.0,100590.0,0.06607036]
[1733427069654,0.0008671,100600.0,100590.0,0.14667036]
[1733427070106,0.0008671,100600.0,100590.0,0.06507635]
[1733427073432,0.0008671,100600.0,100590.0,0.01525356]
[1733427073652,0.0008671,100600.0,100590.0,0.06495956]
[1733427073871,0.0008671,100600.0,100590.0,0.049706]
[1733427075757,0.03858998,100620.0,100610.0,0.049696]
[1733427075971,0.28925203,100620.0,100610.0,0.049696]
[1733427076445,0.28826603,100620.0,100610.0,0.049696]
[1733427077994,0.0796,100630.0,100620.0,0.049691]
[1733427078218,0.17927605,100630.0,100620.0,0.049691]
[1733427079323,0.32927605,100630.0,100620.0,0.049691]
[1733427081950,0.0499339,100640.0,100620.0,0.149071]
[1733427082129,0.14960995,100640.0,100630.0,0.049686]
[1733427082580,0.14861365,100640.0,100630.0,0.049686]
[1733427082801,0.10141365,100640.0,100630.0,0.049686]
[1733427083193,0.0017376,100640.0,100630.0,0.049686]
[1733427083412,0.00191328,100640.0,100630.0,0.05067968]
[1733427084252,0.00191328,100640.0,100630.0,0.049686]
[1733427086228,2.8e-07,100640.0,100630.0,0.05067959]
[1733427086455,2.8e-07,100640.0,100630.0,0.32785564]
[1733427086673,2.8e-07,100640.0,100630.0,0.32686205]
[1733427087996,3e-07,100660.0,100640.0,0.29935558]
[1733427088203,3e-07,100670.0,100660.0,0.149672]
[1733427088412,0.1236,100700.0,100690.0,0.049657]
[1733427088644,0.22386332,100700.0,100690.0,0.049657]
[1733427089532,0.2768,100690.0,100680.0,0.049659]
[1733427089745,0.37647605,100690.0,100680.0,0.049659]
[1733427090197,0.22647605,100690.0,100680.0,0.049659]
[1733427090407,0.1268,100690.0,100680.0,0.049659]
[1733427091437,0.2768,100690.0,100680.0,0.049659]
[1733427092102,0.2768,100690.0,100680.0,0.06456611]
[1733427092541,0.37647605,100690.0,100680.0,0.06456611]
[1733427092956,0.41418238,100690.0,100680.0,0.06456611]
[1733427093170,0.37647605,100690.0,100680.0,0.06456611]
[1733427095452,0.37734265,100690.0,100680.0,0.06456611]
[1733427095896,0.25054265,100690.0,100680.0,0.06456611]
[1733427097966,0.0008666,100690.0,100680.0,0.06555929]
[1733427099165,0.0008666,100690.0,100680.0,0.06456611]
[1733427101183,0.25054265,100690.0,100680.0,0.06456611]
[1733427101419,0.15,100680.0,100670.0,0.049663]
[1733427101754,0.32767605,100680.0,100670.0,0.049663]
[1733427105125,0.1315,100670.0,100660.0,0.049672]
[1733427105386,0.15,100660.0,100650.0,0.099348]
[1733427105624,0.09967605,100670.0,100660.0,0.049672]
[1733427105857,0.24967605,100670.0,100660.0,0.049672]
[1733427106081,0.33257605,100670.0,100660.0,0.049672]
[1733427106812,0.33316296,100670.0,100660.0,0.049672]
[1733427107487,0.25026296,100670.0,100660.0,0.049672]
[1733427107724,0.00393367,100670.0,100660.0,0.049672]
[1733427107945,0.00393367,100670.0,100660.0,0.0506654]
[1733427109078,6.7e-07,100670.0,100660.0,0.1273654]
[1733427109337,0.00334676,100670.0,100660.0,0.1273654]
[1733427109558,0.0009992,100680.0,100670.0,0.049667]
[1733427109766,0.0011752,100680.0,100670.0,0.05066022]
[1733427109977,0.000176,100680.0,100670.0,0.049667]
[1733427114887,0.24985205,100680.0,100670.0,0.049667]
[1733427118722,0.25071815,100680.0,100670.0,0.049667]
[1733427120307,0.25406508,100680.0,100670.0,0.049667]
[1733427121269,0.40967132,100680.0,100670.0,0.049667]
[1733427121725,0.37601815,100680.0,100670.0,0.049667]
[1733427125408,0.0010421,100680.0,100670.0,0.049667]
[1733427125615,0.0010421,100680.0,100670.0,0.05066031]
[1733427126034,0.0010421,100680.0,100670.0,0.049667]
[1733427126245,0.0010421,100680.0,100670.0,0.05066021]
[1733427126667,0.0010421,100680.0,100670.0,0.049667]
[1733427127341,0.0010421,100680.0,100670.0,0.05066021]
[1733427127980,0.0010421,100680.0,100670.0,0.049667]
[1733427129994,0.0010421,100680.0,100670.0,0.05066026]
[1733427130440,1e-07,100680.0,100670.0,0.05066026]
[1733427130659,1e-07,100680.0,100670.0,0.15338202]
[1733427139760,1e-07,100680.0,100670.0,0.35305807]
[1733427139964,1e-07,100680.0,100670.0,0.35206481]
[1733427141900,1e-07,100680.0,100670.0,0.35379701]
[1733427142115,0.231924,100710.0,100690.0,0.049653]
[1733427142332,0.231924,100710.0,100700.0,0.049652]
[1733427142546,0.33160005,100710.0,100700.0,0.049652]
[1733427142778,0.33061065,100710.0,100700.0,0.049652]
[1733427144151,0.37971065,100710.0,100700.0,0.049652]
[1733427145068,0.15,100680.0,100670.0,0.0515732]
[1733427145294,0.33167605,100680.0,100670.0,0.0019082]
[1733427145543,0.33167605,100680.0,100670.0,0.0515752]
[1733427147717,0.15,100680.0,100670.0,0.0515752]
[1733427147990,0.1301,100690.0,100670.0,0.15189945]
[1733427148255,0.18197605,100690.0,100680.0,0.049662]
[1733427148899,0.0823,100690.0,100680.0,0.049662]
[1733427149801,0.1509931,100700.0,100690.0,0.049657]
[1733427150024,0.10066915,100700.0,100690.0,0.049657]
[1733427150244,0.09967605,100700.0,100690.0,0.049657]
[1733427151112,0.24967605,100700.0,100690.0,0.049657]
[1733427153962,0.1508661,100700.0,100690.0,0.049657]
[1733427155474,0.1508661,100700.0,100690.0,0.06326053]
[1733427162515,0.25054215,100700.0,100690.0,0.06326053]
[1733427162722,0.37167983,100700.0,100690.0,0.049657]
[1733427163169,0.33344215,100700.0,100690.0,0.049657]
[1733427166450,0.33344215,100700.0,100690.0,0.0513888]
[1733427170636,0.25054215,100700.0,100690.0,0.0513888]
[1733427171515,0.0008661,100700.0,100690.0,0.0513888]
[1733427172584,0.1508661,100700.0,100690.0,0.0513888]
[1733427174507,0.0008661,100700.0,100690.0,0.0513888]
[1733427175794,0.0008661,100700.0,100690.0,0.05238187]
[1733427176257,0.0008661,100700.0,100690.0,0.0513888]
[1733427177586,0.25054215,100700.0,100690.0,0.0513888]
[1733427177819,0.41483983,100700.0,100690.0,0.0513888]
[1733427178451,0.38134215,100700.0,100690.0,0.0513888]
[1733427181284,0.38134215,100700.0,100690.0,0.0017318]
[1733427181532,0.77995115,100700.0,100690.0,0.0017318]
[1733427181751,0.57995115,100700.0,100690.0,0.0017318]
[1733427181958,0.2706,100680.0,100670.0,0.0019082]
[1733427182179,0.51733605,100680.0,100670.0,0.0019082]
[1733427182382,0.71598505,100680.0,100670.0,0.0019082]
[1733427183234,0.61598505,100680.0,100670.0,0.0019082]
[1733427183426,0.71598505,100680.0,100670.0,0.0019082]
[1733427185650,0.71571545,100680.0,100670.0,0.0019082]
[1733427186268,0.81571545,100680.0,100670.0,0.0019082]
[1733427187771,0.81571545,100680.0,100630.0,0.0081214]
[1733427187972,0.24967605,100670.0,100630.0,0.0081214]
[1733427188220,0.33125346,100670.0,100660.0,0.039735]
[1733427188407,0.33224646,100670.0,100660.0,0.039735]
[1733427188574,0.41424646,100670.0,100660.0,0.039735]
[1733427188781,0.2782,100660.0,100640.0,0.079487]
[1733427189041,0.24967605,100650.0,100640.0,0.079487]
[1733427190638,0.15,100650.0,100640.0,0.079487]
[1733427191046,0.17782,100650.0,100640.0,0.079487]
[1733427191469,0.15,100650.0,100640.0,0.079487]
[1733427193212,0.082,100660.0,100640.0,0.079487]
[1733427193411,0.33167605,100660.0,100650.0,0.039741]
[1733427194684,0.38087605,100660.0,100650.0,0.039741]
[1733427195772,0.38438522,100660.0,100650.0,0.039741]
[1733427196004,0.48230444,100660.0,100650.0,0.039741]
[1733427197081,0.38438522,100660.0,100650.0,0.039741]
[1733427200886,0.38438522,100660.0,100650.0,0.041473]
[1733427205134,0.33518522,100660.0,100650.0,0.041473]
[1733427208402,0.33518522,100660.0,100630.0,0.039749]
[1733427208613,0.24967605,100650.0,100630.0,0.039749]
[1733427208813,0.24967605,100650.0,100640.0,0.039745]
[1733427209503,0.15,100650.0,100640.0,0.07949]
[1733427209712,0.232,100660.0,100650.0,0.039741]
[1733427209937,0.33167605,100660.0,100650.0,0.039741]
[1733427210569,0.33517339,100660.0,100650.0,0.039741]
[1733427211042,0.00349734,100660.0,100650.0,0.039741]
[1733427211970,0.00349734,100660.0,100650.0,0.00099334]
[1733427212175,0.00349734,100660.0,100650.0,0.04073434]
[1733427212614,0.00349734,100660.0,100650.0,0.24041039]
[1733427212818,5.862e-05,100680.0,100660.0,0.039734]
[1733427213021,5.862e-05,100680.0,100670.0,0.039733]
[1733427214318,0.24973467,100680.0,100670.0,0.039733]
[1733427214530,0.2265,100670.0,100650.0,0.07948]
[1733427214736,0.24967605,100660.0,100650.0,0.07948]
[1733427217840,0.2265,100670.0,100650.0,0.07948]
[1733427218013,0.32617605,100670.0,100660.0,0.039737]
[1733427222554,0.32617605,100670.0,100660.0,0.05311822]
[1733427224558,0.15,100670.0,100660.0,0.05311822]
[1733427224969,0.08395712,100680.0,100660.0,0.13259022]
[1733427225187,0.15,100670.0,100660.0,0.09285322]
[1733427225390,0.1508672,100670.0,100660.0,0.09285322]
[1733427225813,0.15436474,100670.0,100660.0,0.09285322]
[1733427226017,0.15436474,100670.0,100660.0,0.09384656]
[1733427226190,0.15436474,100670.0,100660.0,0.09285322]
[1733427227195,0.00436474,100670.0,100660.0,0.09384654]
[1733427228237,0.00436474,100670.0,100660.0,0.09285322]
[1733427228674,0.00436474,100670.0,100660.0,0.09384652]
[1733427229491,0.00436474,100670.0,100660.0,0.09285322]
[1733427229830,0.00436474,100670.0,100660.0,0.0938465]
[1733427230940,0.00436474,100670.0,100660.0,0.09285322]
[1733427233192,0.0008672,100670.0,100660.0,0.09285322]
[1733427233399,0.00438278,100670.0,100660.0,0.09285322]
[1733427233641,0.00338278,100670.0,100660.0,0.09285322]
[1733427235347,0.10305883,100670.0,100660.0,0.09285322]
[1733427236410,0.18035883,100670.0,100660.0,0.09285322]
[1733427237032,0.35311043,100670.0,100660.0,0.09285322]
[1733427237263,0.35397763,100670.0,100660.0,0.039735]
[1733427238303,0.33122603,100670.0,100660.0,0.039735]
[1733427240119,0.23154998,100670.0,100660.0,0.039735]
[1733427255389,0.23154998,100670.0,100660.0,0.06878923]
[1733427255795,0.23154998,100670.0,100660.0,0.06978255]
[1733427256006,0.00424998,100670.0,100660.0,0.06978255]
[1733427258623,0.00424998,100670.0,100660.0,0.06878923]
[1733427259247,0.00424998,100670.0,100660.0,0.07052323]
[1733427259456,0.00424998,100670.0,100660.0,0.041469]
[1733427259664,0.00424998,100670.0,100660.0,0.07052731]
[1733427259998,0.00424998,100670.0,100660.0,0.041469]
[1733427261937,0.00424998,100670.0,100660.0,0.07052675]
[1733427262170,0.00424998,100670.0,100660.0,0.07152005]
[1733427262997,0.00424998,100670.0,100660.0,0.07052675]
[1733427265561,0.00424998,100670.0,100660.0,0.06936621]
[1733427267725,0.00424998,100670.0,100660.0,0.04030846]
[1733427270219,0.18632603,100670.0,100660.0,0.04030846]
[1733427270489,0.60634235,100670.0,100660.0,0.001734]
[1733427270895,0.70634235,100670.0,100660.0,0.001734]
[1733427271568,0.579108,100650.0,100640.0,0.0017344]
[1733427271782,0.57878405,100650.0,100640.0,0.0017344]
[1733427271999,0.5821921,100650.0,100640.0,0.0017344]
[1733427272202,0.78011132,100650.0,100640.0,0.0017344]
[1733427272897,0.3834841,100650.0,100640.0,0.0017344]
[1733427273120,0.4834841,100650.0,100640.0,0.0414794]
[1733427273542,0.3834841,100650.0,100640.0,0.0414794]
[1733427274219,0.5821921,100650.0,100640.0,0.0017344]
[1733427274639,0.59880576,100650.0,100640.0,0.0017344]
[1733427274860,0.69672498,100650.0,100640.0,0.0017344]
[1733427278081,0.79672498,100650.0,100640.0,0.0017344]
[1733427278243,0.675928,100640.0,100630.0,0.0017346]
[1733427278458,0.77560405,100640.0,100630.0,0.0017346]
[1733427278972,0.77898346,100640.0,100630.0,0.0017346]
[1733427279177,0.87690268,100640.0,100630.0,0.0017346]
[1733427279606,0.87690268,100640.0,100630.0,0.00232151]
[1733427283819,0.87689084,100640.0,100630.0,0.00232151]
[1733427284467,0.77689084,100640.0,100630.0,0.00232151]
[1733427284668,0.48024362,100640.0,100630.0,0.00232151]
[1733427284887,0.48024362,100640.0,100630.0,0.04207051]
[1733427285103,0.48024362,100640.0,100630.0,0.00232151]
[1733427285526,0.23024362,100640.0,100630.0,0.04207051]
[1733427291638,0.23024362,100640.0,100630.0,0.05845177]
[1733427296688,0.22687605,100640.0,100630.0,0.05845177]
[1733427297643,0.24956366,100640.0,100630.0,0.05845177]
[1733427297854,0.22687605,100640.0,100630.0,0.05845177]
[1733427298242,0.0806,100640.0,100630.0,0.05845177]
[1733427301592,0.2306,100640.0,100630.0,0.05845177]
[1733427303648,0.15,100640.0,100630.0,0.05845177]
[1733427303874,0.2763,100650.0,100630.0,0.09819877]
[1733427304095,0.43523519,100650.0,100640.0,0.039745]
[1733427305027,0.43523519,100650.0,100630.0,0.04206851]
[1733427305279,0.57430405,100640.0,100630.0,0.00232151]
[1733427305990,0.398267,100620.0,100610.0,0.0058]
[1733427306233,0.59586227,100620.0,100610.0,0.00597568]
[1733427306471,0.79586227,100620.0,100610.0,0.00597568]
[1733427306954,0.59586227,100620.0,100610.0,0.00597568]
[1733427307188,0.15,100590.0,100580.0,0.0017338]
[1733427307466,0.53288375,100590.0,100580.0,0.0017338]
[1733427307696,0.69800205,100590.0,100580.0,0.0017338]
[1733427307927,0.39917605,100590.0,100580.0,0.0017338]
[1733427308159,0.29917605,100590.0,100580.0,0.0415028]
[1733427308428,0.37867605,100590.0,100580.0,0.0415028]
[1733427310061,0.32917605,100590.0,100580.0,0.0415028]
[1733427311589,0.09967605,100590.0,100580.0,0.0415028]
[1733427311834,0.15,100600.0,100580.0,0.0415028]
[1733427312093,0.24967605,100600.0,100590.0,0.039765]
[1733427313467,0.29770321,100600.0,100590.0,0.039765]
[1733427315629,0.29770321,100600.0,100590.0,0.0406322]
[1733427316768,0.24967605,100600.0,100590.0,0.0406322]
[1733427318525,0.09967605,100600.0,100590.0,0.0406322]
[1733427318726,0.0009955,100610.0,100590.0,0.1201592]
[1733427318954,0.10067155,100610.0,100600.0,0.039761]
[1733427319411,0.07957585,100620.0,100600.0,0.039761]
[1733427319615,0.1792519,100620.0,100600.0,0.079519]
[1733427319764,0.2121266,100620.0,100610.0,0.039757]
[1733427319966,0.2121266,100620.0,100590.0,0.0406322]
[1733427319967,0.397487,100610.0,100590.0,0.0406292]
[1733427320195,0.32777605,100600.0,100590.0,0.0406292]
[1733427320439,0.52658305,100600.0,100590.0,0.0008672]
[1733427320647,0.67528305,100600.0,100590.0,0.0008672]
[1733427320855,0.77320227,100600.0,100590.0,0.0008672]
[1733427321513,0.3754,100590.0,100580.0,0.0017338]
[1733427321715,0.67390205,100590.0,100580.0,0.0017338]
[1733427321922,0.57390205,100590.0,100580.0,0.0017338]
[1733427322339,0.25,100570.0,100560.0,0.001733]
[1733427322496,0.70664205,100570.0,100560.0,0.001733]
[1733427322719,0.50777605,100570.0,100560.0,0.001733]
[1733427322943,0.37277605,100570.0,100560.0,0.001733]
[1733427323150,0.37277605,100570.0,100560.0,0.04151]
[1733427324032,0.37289243,100570.0,100560.0,0.04151]
[1733427324601,0.37289243,100570.0,100560.0,0.001733]
[1733427325105,0.37289243,100570.0,100560.0,0.04151]
[1733427325485,0.45995277,100570.0,100560.0,0.04151]
[1733427326542,0.45995277,100570.0,100560.0,0.001733]
[1733427326742,0.45995277,100570.0,100560.0,0.04151]
[1733427326962,0.47504207,100570.0,100560.0,0.04151]
[1733427327165,0.67390807,100570.0,100550.0,0.078026]
[1733427327385,0.09967605,100560.0,100550.0,0.078026]
[1733427328467,0.09967605,100560.0,100540.0,0.0017326]
[1733427328689,0.2285,100550.0,100540.0,0.0415176]
[1733427328916,0.42817605,100550.0,100540.0,0.0017326]
[1733427329122,0.67578205,100550.0,100540.0,0.0017326]
[1733427329331,0.77370127,100550.0,100540.0,0.0017326]
[1733427329750,0.87370127,100550.0,100540.0,0.0017326]
[1733427331241,1.30830127,100550.0,100540.0,0.0017326]
[1733427331533,1.20830127,100550.0,100540.0,0.0017326]
[1733427331727,0.577125,100540.0,100530.0,0.0017326]
[1733427331935,0.77472027,100540.0,100530.0,0.0017326]
[1733427332607,1.30932027,100540.0,100530.0,0.0017326]
[1733427333880,1.20932027,100540.0,100530.0,0.0017326]
[1733427334095,0.477145,100530.0,100520.0,1e-06]
[1733427334312,0.1,100520.0,100490.0,0.00031011]
[1733427334516,0.62938005,100500.0,100490.0,0.00031011]
[1733427334929,0.77688005,100500.0,100490.0,0.00031011]
[1733427335368,0.349024,100490.0,100480.0,0.0009172]
[1733427335592,0.44870005,100490.0,100480.0,0.00150519]
[1733427335797,0.24967605,100490.0,100480.0,0.04131319]
[1733427336423,0.15,100490.0,100480.0,0.04131319]
[1733427336657,0.15,100490.0,100460.0,0.155615]
[1733427336874,0.15,100480.0,100460.0,0.29627695]
[1733427337077,0.15,100480.0,100470.0,0.079621]
[1733427337970,0.15,100490.0,100480.0,0.079612]
[1733427338172,0.0009808,100500.0,100490.0,0.039804]
[1733427338619,0.1236,100520.0,100500.0,0.039798]
[1733427338808,0.09967605,100510.0,100500.0,0.039798]
[1733427339399,0.24967605,100510.0,100500.0,0.039798]
[1733427339762,0.15011634,100510.0,100500.0,0.039798]
[1733427340315,0.199004,100500.0,100480.0,0.0406741]
[1733427340486,0.44870005,100490.0,100480.0,0.0008681]
[1733427340692,0.24967605,100490.0,100480.0,0.0406761]
[1733427340976,0.24967605,100490.0,100480.0,0.0008681]
[1733427341178,0.44870005,100490.0,100480.0,0.0008681]
[1733427341387,0.49604882,100490.0,100480.0,0.0008681]
[1733427341614,0.59604882,100490.0,100480.0,0.0008681]
[1733427341836,0.69604882,100490.0,100480.0,0.0008681]
[1733427342274,0.67534882,100490.0,100480.0,0.0008681]
[1733427342814,0.57534882,100490.0,100480.0,0.0008681]
[1733427343831,0.69083665,100490.0,100480.0,0.0008681]
[1733427344287,0.59083665,100490.0,100480.0,0.0008681]
[1733427347320,0.69083665,100490.0,100480.0,0.0008681]
[1733427347545,0.59083665,100490.0,100480.0,0.0008681]
[1733427347726,0.69083665,100490.0,100480.0,0.0008681]
[1733427348084,0.64348788,100490.0,100480.0,0.0008681]
[1733427348952,0.17779684,100510.0,100490.0,0.039801]
[1733427349159,0.09967605,100500.0,100480.0,0.0008681]
[1733427349293,0.29868305,100500.0,100480.0,0.0406741]
[1733427349505,0.29868305,100500.0,100480.0,0.0804801]
[1733427349769,0.18712354,100500.0,100490.0,0.039804]
[1733427350848,0.33712354,100500.0,100490.0,0.039804]
[1733427351207,0.24967605,100500.0,100490.0,0.039804]
[1733427351411,0.15,100490.0,100480.0,0.0008681]
[1733427351566,0.24967605,100490.0,100480.0,0.0406761]
[1733427352372,0.09967605,100490.0,100480.0,0.0406761]
[1733427353207,0.09967605,100490.0,100460.0,0.079629]
[1733427353413,0.09967605,100490.0,100480.0,0.039808]
[1733427353414,0.25067134,100490.0,100480.0,0.039808]
[1733427353676,0.24967605,100490.0,100480.0,0.039808]
[1733427354797,0.09967605,100490.0,100480.0,0.039808]
[1733427355202,0.15,100500.0,100490.0,0.039804]
[1733427355356,0.25067134,100500.0,100490.0,0.039804]
[1733427355568,0.09967605,100500.0,100490.0,0.079606]
[1733427355938,0.10067134,100500.0,100470.0,0.039809]
[1733427356147,0.34809534,100490.0,100470.0,0.11943]
[1733427356568,0.34809534,100490.0,100480.0,0.039808]
[1733427356569,0.14907134,100490.0,100480.0,0.039808]